[Event "Titled Tuesday Blitz September 27 Late 2022"]
[White "Preotu, Razvan"]
[Black "Dounis, Alexandros"]
[WhiteFideId "2613280"]
[BlackFideId "4213238"]
[WhiteElo "2407"]
[BlackElo "2204"]
[Result "1/2-1/2"]
[Round "05"]
[TimeControl "180+1"]
[Date "2022.09.28"]
[WhiteClock "0:00:03"]
[BlackClock "0:00:14"]

1. e4 {[%clk 0:03:00]}  e5 {[%clk 0:02:57]} 2. Nf3 {[%clk 0:03:00]}  Nc6 {[%clk 0:02:57]} 3. Bc4 {[%clk 0:02:59]}  Bc5 {[%clk 0:02:56]} 4. c3 {[%clk 0:02:59]}  Nf6 {[%clk 0:02:55]} 5. d3 {[%clk 0:03:00]}  O-O {[%clk 0:02:55]} 6. O-O {[%clk 0:03:00]}  d6 {[%clk 0:02:55]} 7. Re1 {[%clk 0:02:56]}  a6 {[%clk 0:02:54]} 8. a4 {[%clk 0:02:55]}  Ba7 {[%clk 0:02:51]} 9. h3 {[%clk 0:02:55]}  h6 {[%clk 0:02:49]} 10. Nbd2 {[%clk 0:02:55]}  Re8 {[%clk 0:02:48]} 11. b4 {[%clk 0:02:54]}  Be6 {[%clk 0:02:45]} 12. Bxe6 {[%clk 0:02:49]}  Rxe6 {[%clk 0:02:46]} 13. Qc2 {[%clk 0:02:49]}  Qd7 {[%clk 0:02:42]} 14. Rb1 {[%clk 0:02:48]}  Ree8 {[%clk 0:02:35]} 15. b5 {[%clk 0:02:46]}  axb5 {[%clk 0:02:32]} 16. axb5 {[%clk 0:02:46]}  Ne7 {[%clk 0:02:31]} 17. Nc4 {[%clk 0:02:11]}  Ng6 {[%clk 0:02:27]} 18. b6 {[%clk 0:02:05]}  cxb6 {[%clk 0:02:28]} 19. Nxb6 {[%clk 0:01:57]}  Bxb6 {[%clk 0:02:22]} 20. Rxb6 {[%clk 0:01:58]}  Qc7 {[%clk 0:02:17]} 21. Qb3 {[%clk 0:01:50]}  Reb8 {[%clk 0:02:02]} 22. Be3 {[%clk 0:01:45]}  Nd7 {[%clk 0:01:57]} 23. Rb5 {[%clk 0:01:45]}  Nc5 {[%clk 0:01:45]} 24. Qc4 {[%clk 0:01:36]}  Ra4 {[%clk 0:01:35]} 25. Rb4 {[%clk 0:01:36]}  Rxb4 {[%clk 0:01:33]} 26. cxb4 {[%clk 0:01:37]}  Ne6 {[%clk 0:01:32]} 27. Qxc7 {[%clk 0:01:14]}  Nxc7 {[%clk 0:01:33]} 28. Nd2 {[%clk 0:01:10]}  b5 {[%clk 0:01:12]} 29. Ra1 {[%clk 0:00:47]}  Ra8 {[%clk 0:00:57]} 30. Ra5 {[%clk 0:00:30]}  Ra6 {[%clk 0:00:41]} 31. Kf1 {[%clk 0:00:24]}  Ne7 {[%clk 0:00:39]} 32. Nb1 {[%clk 0:00:18]}  Nc6 {[%clk 0:00:39]} 33. Rxa6 {[%clk 0:00:18]}  Nxa6 {[%clk 0:00:39]} 34. Nc3 {[%clk 0:00:18]}  Naxb4 {[%clk 0:00:36]} 35. Ke2 {[%clk 0:00:18]}  f6 {[%clk 0:00:26]} 36. Nxb5 {[%clk 0:00:19]}  d5 {[%clk 0:00:25]} 37. Bc5 {[%clk 0:00:13]}  dxe4 {[%clk 0:00:24]} 38. dxe4 {[%clk 0:00:14]}  Kf7 {[%clk 0:00:20]} 39. Nd6+ {[%clk 0:00:14]}  Ke6 {[%clk 0:00:19]} 40. Nf5 {[%clk 0:00:15]}  Kf7 {[%clk 0:00:17]} 41. h4 {[%clk 0:00:12]}  h5 {[%clk 0:00:17]} 42. Ne3 {[%clk 0:00:10]}  g6 {[%clk 0:00:16]} 43. g3 {[%clk 0:00:10]}  Ke6 {[%clk 0:00:16]} 44. f4 {[%clk 0:00:10]}  Na6 {[%clk 0:00:16]} 45. f5+ {[%clk 0:00:10]}  gxf5 {[%clk 0:00:15]} 46. exf5+ {[%clk 0:00:10]}  Kf7 {[%clk 0:00:15]} 47. Bd6 {[%clk 0:00:10]}  Nd4+ {[%clk 0:00:15]} 48. Kd3 {[%clk 0:00:09]}  Nb5 {[%clk 0:00:15]} 49. Nc4 {[%clk 0:00:07]}  Nxd6 {[%clk 0:00:14]} 50. Nxd6+ {[%clk 0:00:08]}  Ke7 {[%clk 0:00:14]} 51. Ne4 {[%clk 0:00:08]}  Nb4+ {[%clk 0:00:14]} 52. Ke3 {[%clk 0:00:08]}  Nd5+ {[%clk 0:00:14]} 53. Kf3 {[%clk 0:00:08]}  Kf7 {[%clk 0:00:14]} 54. Nd6+ {[%clk 0:00:08]}  Kg7 {[%clk 0:00:13]} 55. Ke4 {[%clk 0:00:07]}  Nc3+ {[%clk 0:00:13]} 56. Kd3 {[%clk 0:00:07]}  Nd5 {[%clk 0:00:13]} 57. Ke4 {[%clk 0:00:05]}  Nc3+ {[%clk 0:00:14]} 58. Kf3 {[%clk 0:00:06]}  Nd5 {[%clk 0:00:14]} 59. Ke4 {[%clk 0:00:03]} 1/2-1/2


[Site "https://www.chess.com"]

[Event "Titled Tuesday Blitz September 27 Late 2022"]
[White "Rastbod, Ali"]
[Black "Van Foreest, Jorden"]
[WhiteFideId "12567477"]
[BlackFideId "1039784"]
[WhiteElo "2191"]
[BlackElo "2649"]
[Result "0-1"]
[Round "05"]
[TimeControl "180+1"]
[Date "2022.09.27"]
[WhiteClock "0:00:18"]
[BlackClock "0:00:52"]

1. d4 {[%clk 0:02:59]}  Nf6 {[%clk 0:02:59]} 2. c4 {[%clk 0:02:45]}  e6 {[%clk 0:02:58]} 3. Nf3 {[%clk 0:02:05]}  c5 {[%clk 0:02:57]} 4. d5 {[%clk 0:02:02]}  d6 {[%clk 0:02:57]} 5. Nc3 {[%clk 0:02:02]}  exd5 {[%clk 0:02:57]} 6. cxd5 {[%clk 0:02:03]}  g6 {[%clk 0:02:57]} 7. e4 {[%clk 0:02:01]}  Bg7 {[%clk 0:02:58]} 8. Be2 {[%clk 0:02:02]}  a6 {[%clk 0:02:56]} 9. a4 {[%clk 0:02:01]}  Bg4 {[%clk 0:02:56]} 10. Nd2 {[%clk 0:02:01]}  Bxe2 {[%clk 0:02:54]} 11. Qxe2 {[%clk 0:02:02]}  O-O {[%clk 0:02:54]} 12. O-O {[%clk 0:02:02]}  Nbd7 {[%clk 0:02:54]} 13. Nc4 {[%clk 0:02:01]}  Nb6 {[%clk 0:02:53]} 14. Na3 {[%clk 0:01:53]}  Re8 {[%clk 0:02:53]} 15. Qd3 {[%clk 0:01:53]}  Nbd7 {[%clk 0:02:52]} 16. Nc4 {[%clk 0:01:49]}  Ne5 {[%clk 0:02:51]} 17. Nxe5 {[%clk 0:01:49]}  Rxe5 {[%clk 0:02:52]} 18. Bf4 {[%clk 0:01:50]}  Re8 {[%clk 0:02:52]} 19. a5 {[%clk 0:01:44]}  Ng4 {[%clk 0:02:48]} 20. Rfe1 {[%clk 0:01:40]}  Bd4 {[%clk 0:02:45]} 21. Bg3 {[%clk 0:01:38]}  h5 {[%clk 0:02:45]} 22. h3 {[%clk 0:01:36]}  h4 {[%clk 0:02:45]} 23. hxg4 {[%clk 0:01:36]}  hxg3 {[%clk 0:02:45]} 24. Qxg3 {[%clk 0:01:36]}  Kg7 {[%clk 0:02:45]} 25. g5 {[%clk 0:01:11]}  Re5 {[%clk 0:02:43]} 26. Qf3 {[%clk 0:01:00]}  Rxg5 {[%clk 0:02:33]} 27. Ne2 {[%clk 0:01:00]}  Bxb2 {[%clk 0:02:31]} 28. Rab1 {[%clk 0:01:00]}  Qxa5 {[%clk 0:02:31]} 29. Rf1 {[%clk 0:01:00]}  Bf6 {[%clk 0:02:28]} 30. Rxb7 {[%clk 0:00:59]}  Re5 {[%clk 0:02:11]} 31. Nf4 {[%clk 0:00:49]}  Re7 {[%clk 0:02:11]} 32. Rfb1 {[%clk 0:00:39]}  Rxb7 {[%clk 0:02:04]} 33. Rxb7 {[%clk 0:00:40]}  Qe1+ {[%clk 0:02:02]} 34. Kh2 {[%clk 0:00:40]}  Rh8+ {[%clk 0:02:02]} 35. Nh3 {[%clk 0:00:41]}  Qf1 {[%clk 0:01:56]} 36. Kg3 {[%clk 0:00:33]}  Rxh3+ {[%clk 0:01:41]} 37. gxh3 {[%clk 0:00:29]}  Qg1+ {[%clk 0:01:41]} 38. Qg2 {[%clk 0:00:28]}  Be5+ {[%clk 0:01:35]} 39. f4 {[%clk 0:00:29]}  Bxf4+ {[%clk 0:01:34]} 40. Kf3 {[%clk 0:00:29]}  Qe3+ {[%clk 0:01:33]} 41. Kg4 {[%clk 0:00:29]}  Be5 {[%clk 0:01:30]} 42. h4 {[%clk 0:00:20]}  a5 {[%clk 0:01:25]} 43. Qf3 {[%clk 0:00:20]}  Qg1+ {[%clk 0:01:12]} 44. Kh3 {[%clk 0:00:20]}  Bf6 {[%clk 0:01:13]} 45. e5 {[%clk 0:00:21]}  dxe5 {[%clk 0:01:13]} 46. d6 {[%clk 0:00:21]}  e4 {[%clk 0:01:09]} 47. Qxe4 {[%clk 0:00:19]}  Qf1+ {[%clk 0:01:10]} 48. Kg3 {[%clk 0:00:19]}  Qg1+ {[%clk 0:01:03]} 49. Kh3 {[%clk 0:00:19]}  a4 {[%clk 0:00:57]} 50. Qd5 {[%clk 0:00:19]}  Qe3+ {[%clk 0:00:55]} 51. Kg2 {[%clk 0:00:19]}  Qe2+ {[%clk 0:00:56]} 52. Kg3 {[%clk 0:00:19]}  Be5+ {[%clk 0:00:55]} 53. Kh3 {[%clk 0:00:18]}  Qf1+ {[%clk 0:00:52]} 54. Kg4 {[%clk 0:00:18]}  Qf5# {[%clk 0:00:52]} 0-1


[Site "https://www.chess.com"]

[Event "Titled Tuesday Blitz September 27 Late 2022"]
[White "Salinas Herrera, Pablo"]
[Black "Tologon tegin, Semetei"]
[WhiteFideId "3407128"]
[BlackFideId "13800574"]
[WhiteElo "2550"]
[BlackElo "2174"]
[Result "0-1"]
[Round "05"]
[TimeControl "180+1"]
[Date "2022.09.28"]
[WhiteClock "0:00:12"]
[BlackClock "0:00:16"]

1. e4 {[%clk 0:03:00]}  e5 {[%clk 0:02:59]} 2. Nf3 {[%clk 0:03:01]}  Nc6 {[%clk 0:02:59]} 3. Bc4 {[%clk 0:03:00]}  Bc5 {[%clk 0:02:59]} 4. O-O {[%clk 0:02:59]}  Nf6 {[%clk 0:02:58]} 5. d3 {[%clk 0:02:59]}  a6 {[%clk 0:02:57]} 6. a3 {[%clk 0:02:59]}  d6 {[%clk 0:02:53]} 7. Nc3 {[%clk 0:02:58]}  h6 {[%clk 0:02:52]} 8. Be3 {[%clk 0:02:58]}  O-O {[%clk 0:02:48]} 9. h3 {[%clk 0:02:55]}  Bxe3 {[%clk 0:02:40]} 10. fxe3 {[%clk 0:02:55]}  Be6 {[%clk 0:02:40]} 11. Nd5 {[%clk 0:02:51]}  Bxd5 {[%clk 0:02:36]} 12. exd5 {[%clk 0:02:50]}  Ne7 {[%clk 0:02:35]} 13. e4 {[%clk 0:02:50]}  Ng6 {[%clk 0:02:30]} 14. Kh2 {[%clk 0:02:36]}  Qe7 {[%clk 0:02:23]} 15. Qe1 {[%clk 0:02:33]}  Nh5 {[%clk 0:02:14]} 16. Nd2 {[%clk 0:02:20]}  Qd7 {[%clk 0:02:03]} 17. Rf5 {[%clk 0:02:17]}  Nf6 {[%clk 0:01:51]} 18. Qf2 {[%clk 0:02:12]}  Nh7 {[%clk 0:01:50]} 19. Rf1 {[%clk 0:02:05]}  Nf4 {[%clk 0:01:34]} 20. Qh4 {[%clk 0:01:25]}  g6 {[%clk 0:01:21]} 21. R5xf4 {[%clk 0:01:25]}  exf4 {[%clk 0:01:12]} 22. Qxh6 {[%clk 0:01:25]}  g5 {[%clk 0:01:08]} 23. Nf3 {[%clk 0:01:07]}  f6 {[%clk 0:01:06]} 24. Nd4 {[%clk 0:01:07]}  Rae8 {[%clk 0:00:46]} 25. Ne6 {[%clk 0:01:00]}  Rf7 {[%clk 0:00:42]} 26. g3 {[%clk 0:00:55]}  fxg3+ {[%clk 0:00:39]} 27. Kxg3 {[%clk 0:00:55]}  c6 {[%clk 0:00:24]} 28. h4 {[%clk 0:00:16]}  cxd5 {[%clk 0:00:23]} 29. exd5 {[%clk 0:00:16]}  gxh4+ {[%clk 0:00:23]} 30. Kxh4 {[%clk 0:00:16]}  Kh8 {[%clk 0:00:22]} 31. Rf5 {[%clk 0:00:14]}  Rg8 {[%clk 0:00:20]} 32. Rh5 {[%clk 0:00:13]}  Qe7 {[%clk 0:00:20]} 33. Kh3 {[%clk 0:00:12]}  f5 {[%clk 0:00:20]} 34. d4 {[%clk 0:00:12]}  Rf6 {[%clk 0:00:20]} 35. Qf4 {[%clk 0:00:12]}  Rfg6 {[%clk 0:00:19]} 36. Qxf5 {[%clk 0:00:10]}  Rg3+ {[%clk 0:00:19]} 37. Kh2 {[%clk 0:00:11]}  Rg2+ {[%clk 0:00:19]} 38. Kh1 {[%clk 0:00:11]}  Rg1+ {[%clk 0:00:19]} 39. Kh2 {[%clk 0:00:11]}  R8g2+ {[%clk 0:00:19]} 40. Kh3 {[%clk 0:00:12]}  Rg3+ {[%clk 0:00:19]} 41. Kh2 {[%clk 0:00:12]}  R1g2+ {[%clk 0:00:20]} 42. Kh1 {[%clk 0:00:13]}  Rg1+ {[%clk 0:00:20]} 43. Kh2 {[%clk 0:00:13]}  R3g2+ {[%clk 0:00:21]} 44. Kh3 {[%clk 0:00:14]}  Rg8 {[%clk 0:00:17]} 45. Bd3 {[%clk 0:00:12]}  Rh1# {[%clk 0:00:16]} 0-1


[Site "https://www.chess.com"]

[Event "Titled Tuesday Blitz September 27 Late 2022"]
[White "So, Wesley"]
[Black "Mikhailov, Viacheslav"]
[WhiteFideId "5202213"]
[BlackFideId "4187369"]
[WhiteElo "2763"]
[BlackElo "2381"]
[Result "0-1"]
[Round "05"]
[TimeControl "180+1"]
[Date "2022.09.27"]
[WhiteClock "0:00:23"]
[BlackClock "0:00:26"]

1. Nf3 {[%clk 0:03:00]}  Nf6 {[%clk 0:02:59]} 2. c4 {[%clk 0:03:00]}  g6 {[%clk 0:03:00]} 3. Nc3 {[%clk 0:03:00]}  Bg7 {[%clk 0:03:01]} 4. e4 {[%clk 0:03:00]}  O-O {[%clk 0:03:02]} 5. d4 {[%clk 0:03:00]}  d6 {[%clk 0:03:02]} 6. Be2 {[%clk 0:03:00]}  Bg4 {[%clk 0:03:02]} 7. Be3 {[%clk 0:03:00]}  Nc6 {[%clk 0:03:02]} 8. d5 {[%clk 0:02:59]}  Bxf3 {[%clk 0:03:01]} 9. Bxf3 {[%clk 0:02:58]}  Ne5 {[%clk 0:03:02]} 10. Be2 {[%clk 0:02:59]}  c6 {[%clk 0:03:03]} 11. f4 {[%clk 0:02:51]}  Ned7 {[%clk 0:03:03]} 12. dxc6 {[%clk 0:02:49]}  bxc6 {[%clk 0:03:04]} 13. O-O {[%clk 0:02:44]}  Rb8 {[%clk 0:03:00]} 14. Qd2 {[%clk 0:02:39]}  Qa5 {[%clk 0:02:30]} 15. Rab1 {[%clk 0:02:36]}  Rfe8 {[%clk 0:02:04]} 16. Rfd1 {[%clk 0:02:30]}  Qc7 {[%clk 0:01:38]} 17. g4 {[%clk 0:02:10]}  Nc5 {[%clk 0:01:37]} 18. Bxc5 {[%clk 0:02:09]}  dxc5 {[%clk 0:01:38]} 19. e5 {[%clk 0:02:08]}  Red8 {[%clk 0:01:32]} 20. Qe3 {[%clk 0:02:07]}  Nd7 {[%clk 0:01:22]} 21. g5 {[%clk 0:02:03]}  Nf8 {[%clk 0:01:12]} 22. Bg4 {[%clk 0:01:53]}  Rxd1+ {[%clk 0:01:10]} 23. Rxd1 {[%clk 0:01:39]}  Rxb2 {[%clk 0:01:09]} 24. Qxc5 {[%clk 0:01:39]}  h5 {[%clk 0:01:02]} 25. Nd5 {[%clk 0:01:30]}  Qb8 {[%clk 0:00:52]} 26. Nxe7+ {[%clk 0:01:29]}  Kh7 {[%clk 0:00:53]} 27. Nxc6 {[%clk 0:01:21]}  Qb7 {[%clk 0:00:45]} 28. Bf3 {[%clk 0:01:06]}  Ne6 {[%clk 0:00:44]} 29. Qxa7 {[%clk 0:00:59]}  Qxa7+ {[%clk 0:00:37]} 30. Nxa7 {[%clk 0:01:00]}  Nxf4 {[%clk 0:00:37]} 31. Bd5 {[%clk 0:00:33]}  Bxe5 {[%clk 0:00:29]} 32. Nc6 {[%clk 0:00:23]}  Nh3+ {[%clk 0:00:26]} 33. Kh1 {[%clk 0:00:23]}  Rxh2# {[%clk 0:00:26]} 0-1


[Site "https://www.chess.com"]

[Event "Titled Tuesday Blitz September 27 Late 2022"]
[White "Svane, Frederik"]
[Black "Bykov, Egor"]
[WhiteFideId "12923044"]
[BlackFideId "34115290"]
[WhiteElo "2459"]
[BlackElo "2192"]
[Result "0-1"]
[Round "05"]
[TimeControl "180+1"]
[Date "2022.09.27"]
[WhiteClock "0:00:03"]
[BlackClock "0:00:24"]

1. a3 {[%clk 0:03:00]}  d5 {[%clk 0:02:56]} 2. Nf3 {[%clk 0:02:59]}  Nf6 {[%clk 0:02:55]} 3. e3 {[%clk 0:03:00]}  Bg4 {[%clk 0:02:54]} 4. h3 {[%clk 0:02:55]}  Bh5 {[%clk 0:02:54]} 5. Be2 {[%clk 0:02:54]}  e6 {[%clk 0:02:52]} 6. O-O {[%clk 0:02:54]}  Nbd7 {[%clk 0:02:51]} 7. d4 {[%clk 0:02:53]}  Bd6 {[%clk 0:02:50]} 8. c4 {[%clk 0:02:52]}  c6 {[%clk 0:02:49]} 9. Nc3 {[%clk 0:02:51]}  O-O {[%clk 0:02:47]} 10. b4 {[%clk 0:02:52]}  Ne4 {[%clk 0:02:40]} 11. Nxe4 {[%clk 0:02:49]}  dxe4 {[%clk 0:02:41]} 12. Nd2 {[%clk 0:02:50]}  Bxe2 {[%clk 0:02:39]} 13. Qxe2 {[%clk 0:02:51]}  f5 {[%clk 0:02:39]} 14. c5 {[%clk 0:02:49]}  Bc7 {[%clk 0:02:36]} 15. b5 {[%clk 0:02:50]}  Nf6 {[%clk 0:02:29]} 16. a4 {[%clk 0:02:40]}  Qd7 {[%clk 0:02:23]} 17. Rb1 {[%clk 0:02:23]}  Nd5 {[%clk 0:02:12]} 18. bxc6 {[%clk 0:02:16]}  bxc6 {[%clk 0:02:11]} 19. Qa6 {[%clk 0:02:15]}  Rab8 {[%clk 0:02:00]} 20. Ba3 {[%clk 0:02:15]}  g5 {[%clk 0:01:23]} 21. Rfe1 {[%clk 0:02:09]}  h5 {[%clk 0:01:18]} 22. Nc4 {[%clk 0:01:55]}  g4 {[%clk 0:01:14]} 23. h4 {[%clk 0:01:29]}  g3 {[%clk 0:01:11]} 24. Nd6 {[%clk 0:01:10]}  gxf2+ {[%clk 0:01:04]} 25. Kxf2 {[%clk 0:01:11]}  f4 {[%clk 0:00:59]} 26. exf4 {[%clk 0:01:05]}  Nxf4 {[%clk 0:00:59]} 27. Rxb8 {[%clk 0:01:00]}  Bxb8 {[%clk 0:00:41]} 28. Rxe4 {[%clk 0:00:46]}  Qg7 {[%clk 0:00:30]} 29. Ke1 {[%clk 0:00:13]}  Qxg2 {[%clk 0:00:25]} 30. Qf1 {[%clk 0:00:03]}  Bxd6 {[%clk 0:00:24]} 31. cxd6 {[%clk 0:00:03]}  Qxe4+ {[%clk 0:00:24]} 0-1


[Site "https://www.chess.com"]

[Event "Titled Tuesday Blitz September 27 Late 2022"]
[White "Tari, Aryan"]
[Black "Martinez Alcantara, Jose Eduardo"]
[WhiteFideId "1510045"]
[BlackFideId "3805662"]
[WhiteElo "2612"]
[BlackElo "2703"]
[Result "0-1"]
[Round "05"]
[TimeControl "180+1"]
[Date "2022.09.27"]
[WhiteClock "0:00:02"]
[BlackClock "0:00:06"]

1. e4 {[%clk 0:03:00]}  e5 {[%clk 0:02:58]} 2. Nf3 {[%clk 0:03:01]}  Nf6 {[%clk 0:02:59]} 3. Nxe5 {[%clk 0:02:45]}  d6 {[%clk 0:02:59]} 4. Nf3 {[%clk 0:02:44]}  Nxe4 {[%clk 0:02:59]} 5. Qe2 {[%clk 0:02:45]}  Qe7 {[%clk 0:02:59]} 6. g3 {[%clk 0:02:46]}  Nf6 {[%clk 0:02:53]} 7. Bg2 {[%clk 0:02:39]}  Nc6 {[%clk 0:02:47]} 8. Qxe7+ {[%clk 0:02:28]}  Bxe7 {[%clk 0:02:48]} 9. O-O {[%clk 0:02:28]}  O-O {[%clk 0:02:48]} 10. Re1 {[%clk 0:02:28]}  Re8 {[%clk 0:02:47]} 11. a3 {[%clk 0:02:24]}  Bd7 {[%clk 0:02:44]} 12. d3 {[%clk 0:02:24]}  Bf8 {[%clk 0:02:43]} 13. Rxe8 {[%clk 0:02:23]}  Rxe8 {[%clk 0:02:44]} 14. Nc3 {[%clk 0:02:19]}  g6 {[%clk 0:02:44]} 15. h3 {[%clk 0:02:17]}  Bg7 {[%clk 0:02:44]} 16. Be3 {[%clk 0:02:18]}  a6 {[%clk 0:02:39]} 17. Nd4 {[%clk 0:02:15]}  Nd8 {[%clk 0:02:32]} 18. a4 {[%clk 0:01:59]}  b6 {[%clk 0:02:05]} 19. b4 {[%clk 0:01:32]}  c5 {[%clk 0:01:43]} 20. bxc5 {[%clk 0:01:33]}  bxc5 {[%clk 0:01:44]} 21. Nde2 {[%clk 0:01:32]}  Nc6 {[%clk 0:01:44]} 22. Rc1 {[%clk 0:01:17]}  Nb4 {[%clk 0:01:40]} 23. d4 {[%clk 0:01:17]}  c4 {[%clk 0:01:26]} 24. d5 {[%clk 0:01:07]}  a5 {[%clk 0:00:55]} 25. Nd4 {[%clk 0:01:07]}  Bf5 {[%clk 0:00:44]} 26. Ndb5 {[%clk 0:00:49]}  Bf8 {[%clk 0:00:39]} 27. Bb6 {[%clk 0:00:37]}  Nxc2 {[%clk 0:00:27]} 28. Bxa5 {[%clk 0:00:38]}  Nd7 {[%clk 0:00:23]} 29. Bc7 {[%clk 0:00:35]}  Bd3 {[%clk 0:00:15]} 30. Bxd6 {[%clk 0:00:27]}  Ra8 {[%clk 0:00:15]} 31. Bxf8 {[%clk 0:00:26]}  Kxf8 {[%clk 0:00:16]} 32. d6 {[%clk 0:00:26]}  Ra6 {[%clk 0:00:16]} 33. Bb7 {[%clk 0:00:22]}  Ra5 {[%clk 0:00:13]} 34. Bc6 {[%clk 0:00:08]}  Nb6 {[%clk 0:00:13]} 35. Nd5 {[%clk 0:00:03]}  Nxd5 {[%clk 0:00:11]} 36. Bxd5 {[%clk 0:00:04]}  Rxa4 {[%clk 0:00:09]} 37. Bc6 {[%clk 0:00:04]}  Ra6 {[%clk 0:00:07]} 38. Bb7 {[%clk 0:00:02]}  Rb6 {[%clk 0:00:08]} 39. d7 {[%clk 0:00:02]}  Ke7 {[%clk 0:00:08]} 40. Nd4 {[%clk 0:00:02]}  Nxd4 {[%clk 0:00:06]} 0-1


[Site "https://www.chess.com"]

[Event "Titled Tuesday Blitz September 27 Late 2022"]
[White "Timmermans, Mark"]
[Black "Caruana, Fabiano"]
[WhiteFideId "1026399"]
[BlackFideId "2020009"]
[WhiteElo "2460"]
[BlackElo "2847"]
[Result "0-1"]
[Round "05"]
[TimeControl "180+1"]
[Date "2022.09.27"]
[WhiteClock "0:00:09"]
[BlackClock "0:00:16"]

1. b4 {[%clk 0:03:00]}  e5 {[%clk 0:02:59]} 2. Bb2 {[%clk 0:02:58]}  Bxb4 {[%clk 0:02:58]} 3. Bxe5 {[%clk 0:02:58]}  Nf6 {[%clk 0:02:58]} 4. Nc3 {[%clk 0:02:57]}  O-O {[%clk 0:02:59]} 5. Bxf6 {[%clk 0:02:57]}  Qxf6 {[%clk 0:02:59]} 6. Nd5 {[%clk 0:02:58]}  Qd6 {[%clk 0:02:59]} 7. c4 {[%clk 0:02:57]}  Ba5 {[%clk 0:02:54]} 8. e3 {[%clk 0:02:57]}  c6 {[%clk 0:02:53]} 9. Nf4 {[%clk 0:02:57]}  Qf6 {[%clk 0:02:42]} 10. Nf3 {[%clk 0:02:56]}  d6 {[%clk 0:02:42]} 11. Be2 {[%clk 0:02:44]}  Nd7 {[%clk 0:02:40]} 12. O-O {[%clk 0:02:43]}  Ne5 {[%clk 0:02:30]} 13. d4 {[%clk 0:02:43]}  Ng6 {[%clk 0:02:29]} 14. Nh5 {[%clk 0:02:42]}  Qe7 {[%clk 0:02:28]} 15. Bd3 {[%clk 0:02:34]}  Bc7 {[%clk 0:02:20]} 16. Ng3 {[%clk 0:02:26]}  d5 {[%clk 0:02:12]} 17. Qc2 {[%clk 0:02:22]}  Bg4 {[%clk 0:02:07]} 18. cxd5 {[%clk 0:02:08]}  cxd5 {[%clk 0:02:08]} 19. Qb3 {[%clk 0:02:01]}  Bxg3 {[%clk 0:01:10]} 20. hxg3 {[%clk 0:01:58]}  Rfd8 {[%clk 0:01:09]} 21. Rab1 {[%clk 0:01:49]}  b6 {[%clk 0:01:09]} 22. Rfc1 {[%clk 0:01:49]}  Rac8 {[%clk 0:01:07]} 23. Rxc8 {[%clk 0:01:49]}  Bxc8 {[%clk 0:01:08]} 24. Rc1 {[%clk 0:01:47]}  Be6 {[%clk 0:01:08]} 25. Bxg6 {[%clk 0:01:47]}  hxg6 {[%clk 0:01:07]} 26. Ne5 {[%clk 0:01:48]}  Qb7 {[%clk 0:00:58]} 27. Rc3 {[%clk 0:01:41]}  Rc8 {[%clk 0:00:57]} 28. Qc2 {[%clk 0:01:39]}  Rxc3 {[%clk 0:00:49]} 29. Qxc3 {[%clk 0:01:40]}  a5 {[%clk 0:00:37]} 30. a3 {[%clk 0:01:37]}  g5 {[%clk 0:00:35]} 31. f4 {[%clk 0:01:29]}  gxf4 {[%clk 0:00:34]} 32. gxf4 {[%clk 0:01:29]}  f6 {[%clk 0:00:33]} 33. Nf3 {[%clk 0:01:08]}  Qc8 {[%clk 0:00:32]} 34. Qb2 {[%clk 0:01:03]}  Qc6 {[%clk 0:00:31]} 35. Qb1 {[%clk 0:01:01]}  b5 {[%clk 0:00:29]} 36. Nh4 {[%clk 0:00:58]}  Qc3 {[%clk 0:00:25]} 37. Kf2 {[%clk 0:00:52]}  b4 {[%clk 0:00:22]} 38. axb4 {[%clk 0:00:53]}  axb4 {[%clk 0:00:23]} 39. Qg6 {[%clk 0:00:52]}  Bf7 {[%clk 0:00:22]} 40. Qg4 {[%clk 0:00:52]}  Qd2+ {[%clk 0:00:21]} 41. Qe2 {[%clk 0:00:46]}  Qxe2+ {[%clk 0:00:21]} 42. Kxe2 {[%clk 0:00:47]}  Kh7 {[%clk 0:00:15]} 43. Kd2 {[%clk 0:00:46]}  Bg6 {[%clk 0:00:13]} 44. f5 {[%clk 0:00:33]}  Be8 {[%clk 0:00:13]} 45. Nf3 {[%clk 0:00:28]}  Kh6 {[%clk 0:00:13]} 46. g4 {[%clk 0:00:28]}  Bb5 {[%clk 0:00:14]} 47. Ne1 {[%clk 0:00:18]}  Kg5 {[%clk 0:00:14]} 48. Nc2 {[%clk 0:00:18]}  b3 {[%clk 0:00:14]} 49. Nb4 {[%clk 0:00:19]}  Bc4 {[%clk 0:00:14]} 50. Kc3 {[%clk 0:00:19]}  Kxg4 {[%clk 0:00:14]} 51. e4 {[%clk 0:00:14]}  dxe4 {[%clk 0:00:15]} 52. d5 {[%clk 0:00:14]}  Bb5 {[%clk 0:00:14]} 53. Kxb3 {[%clk 0:00:14]}  Kxf5 {[%clk 0:00:14]} 54. Kc3 {[%clk 0:00:14]}  Ke5 {[%clk 0:00:14]} 55. Kd2 {[%clk 0:00:13]}  f5 {[%clk 0:00:14]} 56. Ke3 {[%clk 0:00:13]}  f4+ {[%clk 0:00:15]} 57. Kf2 {[%clk 0:00:14]}  g5 {[%clk 0:00:15]} 58. Na2 {[%clk 0:00:12]}  g4 {[%clk 0:00:14]} 59. Nc3 {[%clk 0:00:11]}  e3+ {[%clk 0:00:15]} 60. Ke1 {[%clk 0:00:09]}  Bc4 {[%clk 0:00:16]} 61. d6 {[%clk 0:00:09]}  Kxd6 {[%clk 0:00:16]} 0-1


[Site "https://www.chess.com"]

[Event "Titled Tuesday Blitz September 27 Late 2022"]
[White "Xiong, Jeffery"]
[Black "Dardha, Daniel"]
[WhiteFideId "2047640"]
[BlackFideId "240990"]
[WhiteElo "2714"]
[BlackElo "2528"]
[Result "0-1"]
[Round "05"]
[TimeControl "180+1"]
[Date "2022.09.27"]
[WhiteClock "0:00:32"]
[BlackClock "0:01:18"]

1. e4 {[%clk 0:03:00]}  e5 {[%clk 0:02:59]} 2. Nf3 {[%clk 0:03:01]}  Nc6 {[%clk 0:02:59]} 3. Nc3 {[%clk 0:03:02]}  Nf6 {[%clk 0:02:59]} 4. d4 {[%clk 0:03:02]}  exd4 {[%clk 0:02:58]} 5. Nxd4 {[%clk 0:03:03]}  Bb4 {[%clk 0:02:56]} 6. Nxc6 {[%clk 0:03:04]}  bxc6 {[%clk 0:02:57]} 7. Bd3 {[%clk 0:03:04]}  O-O {[%clk 0:02:57]} 8. O-O {[%clk 0:03:05]}  d5 {[%clk 0:02:56]} 9. exd5 {[%clk 0:03:06]}  cxd5 {[%clk 0:02:56]} 10. h3 {[%clk 0:03:06]}  Rb8 {[%clk 0:02:52]} 11. Qf3 {[%clk 0:03:06]}  Be6 {[%clk 0:02:50]} 12. a3 {[%clk 0:03:00]}  Be7 {[%clk 0:02:47]} 13. Rd1 {[%clk 0:02:54]}  c5 {[%clk 0:02:38]} 14. b3 {[%clk 0:02:55]}  Qc7 {[%clk 0:02:30]} 15. Bf4 {[%clk 0:02:52]}  Qb7 {[%clk 0:02:13]} 16. Bxb8 {[%clk 0:02:53]}  Qxb8 {[%clk 0:02:14]} 17. Bf5 {[%clk 0:02:44]}  Qe5 {[%clk 0:02:08]} 18. Bxe6 {[%clk 0:02:42]}  fxe6 {[%clk 0:02:09]} 19. Qd3 {[%clk 0:01:59]}  Bd6 {[%clk 0:02:04]} 20. g3 {[%clk 0:02:00]}  Qh5 {[%clk 0:02:04]} 21. Kg2 {[%clk 0:01:53]}  Be5 {[%clk 0:02:00]} 22. Re1 {[%clk 0:01:38]}  Bd4 {[%clk 0:01:51]} 23. f4 {[%clk 0:01:31]}  e5 {[%clk 0:01:38]} 24. fxe5 {[%clk 0:00:51]}  Ng4 {[%clk 0:01:28]} 25. Nd1 {[%clk 0:00:32]}  Nf2 {[%clk 0:01:18]} 0-1


[Site "https://www.chess.com"]